[Event "Titled Tuesday Blitz June 13 Late 2023"]
[White "Womacka, Mathias"]
[Black "Lopez Perdomo, Juan David"]
[WhiteFideId "4611390"]
[BlackFideId "4405137"]
[WhiteElo "2377"]
[BlackElo "1965"]
[Result "1-0"]
[Round "8"]
[TimeControl "180+2"]
[Date "2023.06.13"]
[WhiteClock "0:00:12"]
[BlackClock "0:00:01"]
[Board "109"]

1. e4 {[%clk 0:03:00]}  e6 {[%clk 0:03:00]} 2. d4 {[%clk 0:03:00]}  d5 {[%clk 0:03:01]} 3. Nd2 {[%clk 0:03:00]}  Nf6 {[%clk 0:03:01]} 4. e5 {[%clk 0:03:00]}  Nfd7 {[%clk 0:03:02]} 5. Bd3 {[%clk 0:03:00]}  c5 {[%clk 0:03:02]} 6. c3 {[%clk 0:03:01]}  Nc6 {[%clk 0:03:02]} 7. Ne2 {[%clk 0:03:01]}  Be7 {[%clk 0:03:03]} 8. Nf3 {[%clk 0:02:59]}  b6 {[%clk 0:03:03]} 9. h4 {[%clk 0:02:54]}  cxd4 {[%clk 0:03:03]} 10. cxd4 {[%clk 0:02:54]}  Nb4 {[%clk 0:03:03]} 11. Bb1 {[%clk 0:02:53]}  Ba6 {[%clk 0:02:56]} 12. a3 {[%clk 0:02:48]}  Nc6 {[%clk 0:02:55]} 13. h5 {[%clk 0:02:33]}  Na5 {[%clk 0:02:45]} 14. Rh3 {[%clk 0:02:29]}  h6 {[%clk 0:02:44]} 15. Rg3 {[%clk 0:02:29]}  Rc8 {[%clk 0:02:36]} 16. Rxg7 {[%clk 0:01:57]}  Bxe2 {[%clk 0:02:35]} 17. Kxe2 {[%clk 0:01:57]}  Bf8 {[%clk 0:02:03]} 18. Rg3 {[%clk 0:01:50]}  Rxc1 {[%clk 0:02:01]} 19. Qxc1 {[%clk 0:01:51]}  Nb3 {[%clk 0:02:01]} 20. Qd1 {[%clk 0:01:51]}  Nxa1 {[%clk 0:02:02]} 21. Bd3 {[%clk 0:01:51]}  b5 {[%clk 0:00:52]} 22. Qxa1 {[%clk 0:01:49]}  a6 {[%clk 0:00:49]} 23. Qc1 {[%clk 0:01:47]}  Qb8 {[%clk 0:00:41]} 24. Qc6 {[%clk 0:01:35]}  Qb6 {[%clk 0:00:29]} 25. Qa8+ {[%clk 0:01:34]}  Ke7 {[%clk 0:00:29]} 26. Qc8 {[%clk 0:01:13]}  Bg7 {[%clk 0:00:26]} 27. Qc3 {[%clk 0:01:07]}  Bf8 {[%clk 0:00:13]} 28. b4 {[%clk 0:00:58]}  Ke8 {[%clk 0:00:09]} 29. Nd2 {[%clk 0:00:57]}  Qb8 {[%clk 0:00:07]} 30. Nb3 {[%clk 0:00:56]}  Be7 {[%clk 0:00:03]} 31. Bc2 {[%clk 0:00:34]}  Kd8 {[%clk 0:00:03]} 32. Qc6 {[%clk 0:00:29]}  Qc7 {[%clk 0:00:03]} 33. Rc3 {[%clk 0:00:26]}  Qxc6 {[%clk 0:00:02]} 34. Rxc6 {[%clk 0:00:25]}  Nb8 {[%clk 0:00:03]} 35. Rc3 {[%clk 0:00:25]}  Kd7 {[%clk 0:00:04]} 36. Nc5+ {[%clk 0:00:23]}  Bxc5 {[%clk 0:00:04]} 37. Rxc5 {[%clk 0:00:24]}  Rc8 {[%clk 0:00:03]} 38. Rxc8 {[%clk 0:00:22]}  Kxc8 {[%clk 0:00:04]} 39. g4 {[%clk 0:00:22]}  Kd7 {[%clk 0:00:04]} 40. g5 {[%clk 0:00:21]}  Ke7 {[%clk 0:00:02]} 41. gxh6 {[%clk 0:00:21]}  Kf8 {[%clk 0:00:03]} 42. Bd3 {[%clk 0:00:17]}  Nc6 {[%clk 0:00:03]} 43. Ke3 {[%clk 0:00:17]}  Ne7 {[%clk 0:00:03]} 44. a4 {[%clk 0:00:15]}  Kg8 {[%clk 0:00:04]} 45. axb5 {[%clk 0:00:14]}  Kf8 {[%clk 0:00:05]} 46. bxa6 {[%clk 0:00:13]}  Kg8 {[%clk 0:00:06]} 47. a7 {[%clk 0:00:13]}  Nc6 {[%clk 0:00:03]} 48. a8=Q+ {[%clk 0:00:12]}  Nd8 {[%clk 0:00:01]} 49. Qxd8# {[%clk 0:00:12]} 1-0


[Site "https://www.chess.com"]

[Event "Titled Tuesday Blitz June 13 Late 2023"]
[White "zano2023"]
[Black "Gasparyan, David"]
[BlackFideId "13311980"]
[WhiteElo "2116"]
[BlackElo "2432"]
[Result "0-1"]
[Round "8"]
[TimeControl "180+2"]
[Date "2023.06.13"]
[WhiteClock "0:00:51"]
[BlackClock "0:00:35"]
[Board "111"]

1. d4 {[%clk 0:03:00]}  Nf6 {[%clk 0:02:57]} 2. Nd2 {[%clk 0:02:58]}  d5 {[%clk 0:02:56]} 3. Ngf3 {[%clk 0:02:58]}  Bf5 {[%clk 0:02:53]} 4. e3 {[%clk 0:02:58]}  e6 {[%clk 0:02:53]} 5. c4 {[%clk 0:02:59]}  c6 {[%clk 0:02:52]} 6. Qb3 {[%clk 0:02:59]}  Na6 {[%clk 0:02:37]} 7. a3 {[%clk 0:02:52]}  Rb8 {[%clk 0:02:37]} 8. Bd3 {[%clk 0:02:47]}  Bxd3 {[%clk 0:02:25]} 9. Qxd3 {[%clk 0:02:48]}  Bd6 {[%clk 0:02:24]} 10. c5 {[%clk 0:02:45]}  Bc7 {[%clk 0:02:22]} 11. b4 {[%clk 0:02:45]}  Qc8 {[%clk 0:02:20]} 12. Bb2 {[%clk 0:02:44]}  b5 {[%clk 0:02:17]} 13. cxb6 {[%clk 0:02:36]}  axb6 {[%clk 0:02:15]} 14. Rc1 {[%clk 0:02:33]}  c5 {[%clk 0:01:50]} 15. Qb5+ {[%clk 0:02:29]}  Nd7 {[%clk 0:01:44]} 16. dxc5 {[%clk 0:02:08]}  bxc5 {[%clk 0:01:44]} 17. Qe2 {[%clk 0:02:05]}  cxb4 {[%clk 0:01:43]} 18. Bxg7 {[%clk 0:01:55]}  Rg8 {[%clk 0:01:42]} 19. Bb2 {[%clk 0:01:53]}  Qb7 {[%clk 0:01:39]} 20. O-O {[%clk 0:01:51]}  Ba5 {[%clk 0:01:08]} 21. Nd4 {[%clk 0:01:44]}  Nac5 {[%clk 0:00:58]} 22. axb4 {[%clk 0:01:21]}  Bxb4 {[%clk 0:00:57]} 23. Bc3 {[%clk 0:01:21]}  Bxc3 {[%clk 0:00:55]} 24. Rxc3 {[%clk 0:01:21]}  Qb2 {[%clk 0:00:52]} 25. Rc2 {[%clk 0:01:18]}  Qb6 {[%clk 0:00:48]} 26. h3 {[%clk 0:01:14]}  Kf8 {[%clk 0:00:45]} 27. Rb1 {[%clk 0:01:12]}  Qa7 {[%clk 0:00:42]} 28. Rxb8+ {[%clk 0:01:11]}  Qxb8 {[%clk 0:00:42]} 29. N2f3 {[%clk 0:01:07]}  Qb1+ {[%clk 0:00:41]} 30. Kh2 {[%clk 0:01:07]}  Rg6 {[%clk 0:00:40]} 31. Rb2 {[%clk 0:01:07]}  Qe4 {[%clk 0:00:38]} 32. Nc6 {[%clk 0:00:54]}  Nd3 {[%clk 0:00:34]} 33. Rd2 {[%clk 0:00:52]}  N3e5 {[%clk 0:00:34]} 34. Ncxe5 {[%clk 0:00:51]}  Nxe5 {[%clk 0:00:35]} 35. Nxe5 {[%clk 0:00:51]}  Qxg2# {[%clk 0:00:35]} 0-1


[Site "https://www.chess.com"]

[Event "Titled Tuesday Blitz June 13 Late 2023"]
[White "Myers, Dominique"]
[Black "Petersson, Kjell"]
[WhiteFideId "2041715"]
[BlackFideId "1705148"]
[WhiteElo "1951"]
[BlackElo "2005"]
[Result "0-1"]
[Round "8"]
[TimeControl "180+2"]
[Date "2023.06.13"]
[WhiteClock "0:01:11"]
[BlackClock "0:00:14"]
[Board "112"]

1. e4 {[%clk 0:02:59]}  c5 {[%clk 0:02:59]} 2. Nf3 {[%clk 0:02:59]}  d6 {[%clk 0:03:00]} 3. d4 {[%clk 0:02:59]}  cxd4 {[%clk 0:03:01]} 4. Nxd4 {[%clk 0:02:59]}  Nf6 {[%clk 0:03:01]} 5. Nc3 {[%clk 0:02:59]}  g6 {[%clk 0:03:02]} 6. Be3 {[%clk 0:02:58]}  Bg7 {[%clk 0:03:02]} 7. f3 {[%clk 0:02:58]}  O-O {[%clk 0:03:03]} 8. Qd2 {[%clk 0:02:58]}  Nc6 {[%clk 0:03:03]} 9. O-O-O {[%clk 0:02:58]}  d5 {[%clk 0:03:03]} 10. exd5 {[%clk 0:02:59]}  Nxd5 {[%clk 0:03:03]} 11. Nxc6 {[%clk 0:02:58]}  bxc6 {[%clk 0:03:03]} 12. Bd4 {[%clk 0:02:58]}  Bxd4 {[%clk 0:03:01]} 13. Qxd4 {[%clk 0:02:59]}  Qb6 {[%clk 0:03:02]} 14. Qxb6 {[%clk 0:02:51]}  axb6 {[%clk 0:02:57]} 15. Nxd5 {[%clk 0:02:49]}  cxd5 {[%clk 0:02:56]} 16. a3 {[%clk 0:02:48]}  e6 {[%clk 0:02:49]} 17. h4 {[%clk 0:02:43]}  Ba6 {[%clk 0:02:46]} 18. Bxa6 {[%clk 0:02:41]}  Rxa6 {[%clk 0:02:47]} 19. h5 {[%clk 0:02:41]}  f6 {[%clk 0:02:20]} 20. hxg6 {[%clk 0:02:41]}  hxg6 {[%clk 0:02:20]} 21. Rh4 {[%clk 0:02:42]}  Ra7 {[%clk 0:01:50]} 22. Rb4 {[%clk 0:02:41]}  Rb8 {[%clk 0:01:42]} 23. Rd3 {[%clk 0:02:35]}  g5 {[%clk 0:01:33]} 24. Rdb3 {[%clk 0:02:34]}  Ra6 {[%clk 0:01:26]} 25. Rb5 {[%clk 0:02:30]}  Kf7 {[%clk 0:01:25]} 26. R3b4 {[%clk 0:02:29]}  Ke7 {[%clk 0:01:22]} 27. a4 {[%clk 0:02:26]}  Kd6 {[%clk 0:01:16]} 28. b3 {[%clk 0:02:26]}  Kc6 {[%clk 0:01:13]} 29. Kd2 {[%clk 0:02:21]}  Rh8 {[%clk 0:01:06]} 30. g4 {[%clk 0:02:19]}  Rh2+ {[%clk 0:00:59]} 31. Ke3 {[%clk 0:02:20]}  Rxc2 {[%clk 0:00:58]} 32. Rd4 {[%clk 0:02:19]}  Rc3+ {[%clk 0:00:56]} 33. Ke2 {[%clk 0:02:20]}  Rc2+ {[%clk 0:00:44]} 34. Ke3 {[%clk 0:02:19]}  Rc1 {[%clk 0:00:43]} 35. Rd2 {[%clk 0:02:18]}  Rc3+ {[%clk 0:00:39]} 36. Kf2 {[%clk 0:02:18]}  Ra7 {[%clk 0:00:38]} 37. Re2 {[%clk 0:02:15]}  e5 {[%clk 0:00:36]} 38. Re1 {[%clk 0:02:09]}  d4 {[%clk 0:00:36]} 39. Rh1 {[%clk 0:02:09]}  Ra5 {[%clk 0:00:32]} 40. Rxa5 {[%clk 0:02:00]}  bxa5 {[%clk 0:00:33]} 41. Rh6 {[%clk 0:02:00]}  Rxb3 {[%clk 0:00:32]} 42. Rxf6+ {[%clk 0:02:00]}  Kd5 {[%clk 0:00:32]} 43. Ra6 {[%clk 0:02:00]}  Rb2+ {[%clk 0:00:29]} 44. Ke1 {[%clk 0:01:58]}  d3 {[%clk 0:00:29]} 45. Rxa5+ {[%clk 0:01:57]}  Kd4 {[%clk 0:00:29]} 46. Ra8 {[%clk 0:01:55]}  Re2+ {[%clk 0:00:27]} 47. Kd1 {[%clk 0:01:55]}  Rf2 {[%clk 0:00:28]} 48. Ke1 {[%clk 0:01:42]}  Ke3 {[%clk 0:00:27]} 49. Rd8 {[%clk 0:01:39]}  d2+ {[%clk 0:00:26]} 50. Kd1 {[%clk 0:01:38]}  Rf1+ {[%clk 0:00:20]} 51. Kc2 {[%clk 0:01:39]}  Rf2 {[%clk 0:00:20]} 52. a5 {[%clk 0:01:36]}  Kxf3 {[%clk 0:00:18]} 53. Rxd2 {[%clk 0:01:35]}  Rf1 {[%clk 0:00:18]} 54. Kb2 {[%clk 0:01:35]}  Rh1 {[%clk 0:00:16]} 55. a6 {[%clk 0:01:31]}  Rh7 {[%clk 0:00:17]} 56. Rd5 {[%clk 0:01:30]}  Kf4 {[%clk 0:00:16]} 57. Ra5 {[%clk 0:01:30]}  Ra7 {[%clk 0:00:16]} 58. Kc3 {[%clk 0:01:31]}  Kxg4 {[%clk 0:00:16]} 59. Kd3 {[%clk 0:01:31]}  Kf4 {[%clk 0:00:15]} 60. Ra4+ {[%clk 0:01:31]}  Kf3 {[%clk 0:00:15]} 61. Kd2 {[%clk 0:01:26]}  e4 {[%clk 0:00:15]} 62. Ke1 {[%clk 0:01:27]}  g4 {[%clk 0:00:15]} 63. Kf1 {[%clk 0:01:26]}  g3 {[%clk 0:00:15]} 64. Kg1 {[%clk 0:01:25]}  e3 {[%clk 0:00:15]} 65. Ra3 {[%clk 0:01:25]}  g2 {[%clk 0:00:15]} 66. Ra2 {[%clk 0:01:23]}  Rh7 {[%clk 0:00:15]} 67. Rxg2 {[%clk 0:01:22]}  e2 {[%clk 0:00:14]} 68. Rf2+ {[%clk 0:01:14]}  Ke3 {[%clk 0:00:15]} 69. a7 {[%clk 0:01:10]}  e1=Q+ {[%clk 0:00:14]} 70. Rf1 {[%clk 0:01:11]}  Qg3# {[%clk 0:00:14]} 0-1


[Site "https://www.chess.com"]

[Event "Titled Tuesday Blitz June 13 Late 2023"]
[White "Jakic, Ivan"]
[Black "Prieto Aranguren, Alain"]
[WhiteFideId "14504901"]
[BlackFideId "2268906"]
[WhiteElo "2365"]
[BlackElo "2209"]
[Result "1-0"]
[Round "8"]
[TimeControl "180+2"]
[Date "2023.06.13"]
[WhiteClock "0:01:35"]
[BlackClock "0:00:36"]
[Board "113"]

1. e4 {[%clk 0:03:00]}  c6 {[%clk 0:02:16]} 2. d4 {[%clk 0:02:59]}  d5 {[%clk 0:02:17]} 3. f3 {[%clk 0:03:00]}  Qb6 {[%clk 0:02:16]} 4. Nc3 {[%clk 0:03:00]}  dxe4 {[%clk 0:02:16]} 5. fxe4 {[%clk 0:02:59]}  e5 {[%clk 0:02:17]} 6. dxe5 {[%clk 0:02:55]}  Be6 {[%clk 0:02:16]} 7. Nf3 {[%clk 0:02:54]}  Nd7 {[%clk 0:02:15]} 8. Bd3 {[%clk 0:02:49]}  Ne7 {[%clk 0:02:14]} 9. Qe2 {[%clk 0:02:47]}  Ng6 {[%clk 0:02:13]} 10. Bd2 {[%clk 0:02:41]}  Ngxe5 {[%clk 0:02:12]} 11. O-O-O {[%clk 0:02:41]}  Nxd3+ {[%clk 0:02:07]} 12. cxd3 {[%clk 0:02:41]}  Qa6 {[%clk 0:02:00]} 13. Kb1 {[%clk 0:02:40]}  Bb4 {[%clk 0:01:58]} 14. a3 {[%clk 0:02:39]}  Ba5 {[%clk 0:01:55]} 15. d4 {[%clk 0:02:37]}  Qxe2 {[%clk 0:01:52]} 16. Nxe2 {[%clk 0:02:38]}  Bxd2 {[%clk 0:01:51]} 17. Rxd2 {[%clk 0:02:39]}  O-O-O {[%clk 0:01:47]} 18. Nf4 {[%clk 0:02:38]}  Nb6 {[%clk 0:01:44]} 19. Nxe6 {[%clk 0:02:36]}  fxe6 {[%clk 0:01:44]} 20. Ng5 {[%clk 0:02:36]}  Rde8 {[%clk 0:01:34]} 21. Nf7 {[%clk 0:02:35]}  Rhf8 {[%clk 0:01:29]} 22. Nd6+ {[%clk 0:02:34]}  Kd7 {[%clk 0:01:30]} 23. Nxe8 {[%clk 0:02:34]}  Kxe8 {[%clk 0:01:30]} 24. Rc1 {[%clk 0:02:34]}  Rf4 {[%clk 0:01:27]} 25. Re2 {[%clk 0:02:33]}  Ke7 {[%clk 0:01:24]} 26. Ka2 {[%clk 0:02:33]}  Nd7 {[%clk 0:01:21]} 27. Rc3 {[%clk 0:02:33]}  Nf6 {[%clk 0:01:21]} 28. Rce3 {[%clk 0:02:23]}  h5 {[%clk 0:01:14]} 29. Rg3 {[%clk 0:02:16]}  Kf7 {[%clk 0:01:00]} 30. e5 {[%clk 0:02:09]}  Nd5 {[%clk 0:00:54]} 31. Rf3 {[%clk 0:02:08]}  g5 {[%clk 0:00:52]} 32. Kb3 {[%clk 0:02:01]}  Kg6 {[%clk 0:00:52]} 33. Rxf4 {[%clk 0:01:59]}  gxf4 {[%clk 0:00:52]} 34. Kc4 {[%clk 0:01:56]}  Kg5 {[%clk 0:00:51]} 35. Kd3 {[%clk 0:01:56]}  Kg4 {[%clk 0:00:51]} 36. Ke4 {[%clk 0:01:53]}  h4 {[%clk 0:00:51]} 37. Rf2 {[%clk 0:01:50]}  h3 {[%clk 0:00:50]} 38. gxh3+ {[%clk 0:01:44]}  Kxh3 {[%clk 0:00:36]} 39. Rxf4 {[%clk 0:01:35]} 1-0


[Site "https://www.chess.com"]

[Event "Titled Tuesday Blitz June 13 Late 2023"]
[White "Kaplan, Avi Harrison"]
[Black "Florianovitz, Derlei Alex"]
[WhiteFideId "30934559"]
[BlackFideId "2114178"]
[WhiteElo "1983"]
[BlackElo "1953"]
[Result "1-0"]
[Round "8"]
[TimeControl "180+2"]
[Date "2023.06.13"]
[WhiteClock "0:00:05"]
[BlackClock "0:00:00"]
[Board "117"]

1. Nf3 {[%clk 0:02:30]}  g6 {[%clk 0:02:57]} 2. h4 {[%clk 0:02:18]}  h5 {[%clk 0:02:51]} 3. a4 {[%clk 0:02:17]}  Bg7 {[%clk 0:02:49]} 4. Ra3 {[%clk 0:02:18]}  c5 {[%clk 0:02:49]} 5. Ng5 {[%clk 0:02:17]}  Nf6 {[%clk 0:02:47]} 6. Rf3 {[%clk 0:02:16]}  Nc6 {[%clk 0:02:45]} 7. e4 {[%clk 0:02:12]}  Nd4 {[%clk 0:02:42]} 8. Rg3 {[%clk 0:02:11]}  d6 {[%clk 0:02:38]} 9. c3 {[%clk 0:02:10]}  Ne6 {[%clk 0:02:35]} 10. Bb5+ {[%clk 0:02:09]}  Bd7 {[%clk 0:02:34]} 11. Nxe6 {[%clk 0:02:09]}  fxe6 {[%clk 0:02:34]} 12. Rxg6 {[%clk 0:02:09]}  Kf7 {[%clk 0:02:32]} 13. Rg3 {[%clk 0:02:03]}  Bxb5 {[%clk 0:02:26]} 14. axb5 {[%clk 0:02:02]}  Nxe4 {[%clk 0:02:25]} 15. Qf3+ {[%clk 0:01:48]}  Nf6 {[%clk 0:02:24]} 16. Rhh3 {[%clk 0:01:48]}  Qf8 {[%clk 0:02:16]} 17. Na3 {[%clk 0:01:43]}  d5 {[%clk 0:02:15]} 18. d4 {[%clk 0:01:41]}  cxd4 {[%clk 0:02:11]} 19. cxd4 {[%clk 0:01:40]}  Ke8 {[%clk 0:02:09]} 20. b6 {[%clk 0:01:37]}  axb6 {[%clk 0:02:08]} 21. Nb5 {[%clk 0:01:37]}  Kd7 {[%clk 0:02:07]} 22. Qf4 {[%clk 0:01:25]}  Rc8 {[%clk 0:02:03]} 23. Rc3 {[%clk 0:01:25]}  Ne4 {[%clk 0:01:58]} 24. Rc7+ {[%clk 0:01:16]}  Rxc7 {[%clk 0:01:56]} 25. Qxc7+ {[%clk 0:01:15]}  Ke8 {[%clk 0:01:56]} 26. Rf3 {[%clk 0:01:09]}  Bf6 {[%clk 0:01:53]} 27. Bg5 {[%clk 0:00:58]}  Kf7 {[%clk 0:01:38]} 28. Nd6+ {[%clk 0:00:52]}  Kg6 {[%clk 0:01:35]} 29. Nxe4 {[%clk 0:00:43]}  dxe4 {[%clk 0:01:36]} 30. Qc2 {[%clk 0:00:43]}  Qc8 {[%clk 0:01:25]} 31. Qxe4+ {[%clk 0:00:43]}  Kf7 {[%clk 0:01:25]} 32. Kf1 {[%clk 0:00:35]}  Qc4+ {[%clk 0:01:23]} 33. Kg1 {[%clk 0:00:35]}  Qd5 {[%clk 0:01:11]} 34. Qxd5 {[%clk 0:00:22]}  exd5 {[%clk 0:01:10]} 35. Bxf6 {[%clk 0:00:23]}  exf6 {[%clk 0:01:10]} 36. Rb3 {[%clk 0:00:24]}  Rc8 {[%clk 0:01:05]} 37. Rxb6 {[%clk 0:00:23]}  Rc7 {[%clk 0:01:05]} 38. g3 {[%clk 0:00:23]}  Kg6 {[%clk 0:01:04]} 39. Kg2 {[%clk 0:00:23]}  Kf5 {[%clk 0:01:04]} 40. Kf3 {[%clk 0:00:22]}  Rd7 {[%clk 0:01:02]} 41. b3 {[%clk 0:00:21]}  Rc7 {[%clk 0:00:59]} 42. Rd6 {[%clk 0:00:18]}  Rc3+ {[%clk 0:00:59]} 43. Kg2 {[%clk 0:00:19]}  Rxb3 {[%clk 0:00:59]} 44. Rxd5+ {[%clk 0:00:19]}  Kg6 {[%clk 0:00:59]} 45. Rd7 {[%clk 0:00:18]}  Rd3 {[%clk 0:00:59]} 46. Rxb7 {[%clk 0:00:18]}  Rxd4 {[%clk 0:00:59]} 47. Rb8 {[%clk 0:00:18]}  Kg7 {[%clk 0:00:55]} 48. Rb5 {[%clk 0:00:18]}  Kg6 {[%clk 0:00:55]} 49. Ra5 {[%clk 0:00:18]}  Rd3 {[%clk 0:00:52]} 50. Ra4 {[%clk 0:00:18]}  Rb3 {[%clk 0:00:52]} 51. Rf4 {[%clk 0:00:19]}  Rc3 {[%clk 0:00:42]} 52. Rf3 {[%clk 0:00:20]}  Rc1 {[%clk 0:00:40]} 53. Re3 {[%clk 0:00:20]}  Rc5 {[%clk 0:00:39]} 54. Rd3 {[%clk 0:00:20]}  Rf5 {[%clk 0:00:37]} 55. Rb3 {[%clk 0:00:20]}  Rd5 {[%clk 0:00:34]} 56. Rb4 {[%clk 0:00:19]}  Re5 {[%clk 0:00:34]} 57. f3 {[%clk 0:00:19]}  Re2+ {[%clk 0:00:34]} 58. Kh3 {[%clk 0:00:19]}  Rf2 {[%clk 0:00:28]} 59. Rf4 {[%clk 0:00:20]}  f5 {[%clk 0:00:24]} 60. Ra4 {[%clk 0:00:10]}  Rxf3 {[%clk 0:00:24]} 61. Ra6+ {[%clk 0:00:11]}  Kg7 {[%clk 0:00:23]} 62. Kg2 {[%clk 0:00:11]}  Rb3 {[%clk 0:00:22]} 63. Kf2 {[%clk 0:00:12]}  Rc3 {[%clk 0:00:20]} 64. Rb6 {[%clk 0:00:11]}  Ra3 {[%clk 0:00:20]} 65. Re6 {[%clk 0:00:12]}  Rb3 {[%clk 0:00:19]} 66. Re3 {[%clk 0:00:12]}  Rb4 {[%clk 0:00:17]} 67. Kf3 {[%clk 0:00:12]}  Kg6 {[%clk 0:00:15]} 68. Re6+ {[%clk 0:00:12]}  Kg7 {[%clk 0:00:15]} 69. Rd6 {[%clk 0:00:12]}  Rc4 {[%clk 0:00:12]} 70. Ke3 {[%clk 0:00:12]}  Rb4 {[%clk 0:00:12]} 71. Rd4 {[%clk 0:00:12]}  Rb3+ {[%clk 0:00:13]} 72. Kf4 {[%clk 0:00:12]}  Rb5 {[%clk 0:00:12]} 73. Rd6 {[%clk 0:00:12]}  Rc5 {[%clk 0:00:09]} 74. Kg5 {[%clk 0:00:11]}  Rc3 {[%clk 0:00:09]} 75. Rg6+ {[%clk 0:00:11]}  Kh7 {[%clk 0:00:08]} 76. Kxh5 {[%clk 0:00:09]}  Rc4 {[%clk 0:00:04]} 77. Rg5 {[%clk 0:00:06]}  f4 {[%clk 0:00:02]} 78. g4 {[%clk 0:00:05]}  f3 {[%clk 0:00:02]} 79. Rf5 {[%clk 0:00:06]}  Rc3 {[%clk 0:00:02]} 80. Kg5 {[%clk 0:00:06]}  Kg7 {[%clk 0:00:02]} 81. h5 {[%clk 0:00:06]}  Kh7 {[%clk 0:00:02]} 82. Rf7+ {[%clk 0:00:06]}  Kg8 {[%clk 0:00:02]} 83. Rf4 {[%clk 0:00:06]}  Rc5+ {[%clk 0:00:01]} 84. Kg6 {[%clk 0:00:05]}  Rc3 {[%clk 0:00:01]} 85. h6 {[%clk 0:00:05]}  Rc6+ {[%clk 0:00:01]} 86. Kh5 {[%clk 0:00:05]}  Rc5+ {[%clk 0:00:00]} 87. g5 {[%clk 0:00:05]} 1-0


[Site "https://www.chess.com"]

[Event "Titled Tuesday Blitz June 13 Late 2023"]
[White "Aung Thant Zin"]
[Black "liwadas82"]
[WhiteFideId "13000063"]
[WhiteElo "2278"]
[BlackElo "2428"]
[Result "1-0"]
[Round "8"]
[TimeControl "180+2"]
[Date "2023.06.13"]
[WhiteClock "0:00:19"]
[BlackClock "0:00:00"]
[Board "118"]

1. e4 {[%clk 0:02:54]}  e5 {[%clk 0:02:59]} 2. Nf3 {[%clk 0:02:54]}  Nc6 {[%clk 0:03:00]} 3. d4 {[%clk 0:02:54]}  exd4 {[%clk 0:02:59]} 4. Nxd4 {[%clk 0:02:54]}  Bc5 {[%clk 0:02:59]} 5. Nb3 {[%clk 0:02:53]}  Bb6 {[%clk 0:02:59]} 6. a4 {[%clk 0:02:53]}  a6 {[%clk 0:02:58]} 7. Be2 {[%clk 0:02:53]}  Nf6 {[%clk 0:02:55]} 8. Nc3 {[%clk 0:02:54]}  d6 {[%clk 0:02:54]} 9. O-O {[%clk 0:02:54]}  h6 {[%clk 0:02:47]} 10. Kh1 {[%clk 0:02:51]}  Ne5 {[%clk 0:02:38]} 11. h3 {[%clk 0:02:44]}  h5 {[%clk 0:02:10]} 12. Nd4 {[%clk 0:02:21]}  Bd7 {[%clk 0:02:02]} 13. Be3 {[%clk 0:02:19]}  h4 {[%clk 0:01:55]} 14. f4 {[%clk 0:02:08]}  Ng6 {[%clk 0:01:54]} 15. Bf3 {[%clk 0:01:54]}  O-O {[%clk 0:01:40]} 16. Nf5 {[%clk 0:01:51]}  Bc6 {[%clk 0:01:30]} 17. Bxb6 {[%clk 0:01:46]}  cxb6 {[%clk 0:01:30]} 18. Qxd6 {[%clk 0:01:37]}  Qxd6 {[%clk 0:01:29]} 19. Nxd6 {[%clk 0:01:37]}  Nxf4 {[%clk 0:01:27]} 20. e5 {[%clk 0:01:37]}  N6h5 {[%clk 0:01:20]} 21. Bxc6 {[%clk 0:01:14]}  Ng3+ {[%clk 0:01:02]} 22. Kg1 {[%clk 0:01:12]}  Nxf1 {[%clk 0:00:59]} 23. Rxf1 {[%clk 0:01:09]}  bxc6 {[%clk 0:00:56]} 24. Rxf4 {[%clk 0:01:08]}  f6 {[%clk 0:00:42]} 25. e6 {[%clk 0:01:05]}  Ra7 {[%clk 0:00:34]} 26. Rxh4 {[%clk 0:00:57]}  Re7 {[%clk 0:00:24]} 27. Re4 {[%clk 0:00:54]}  f5 {[%clk 0:00:24]} 28. Re5 {[%clk 0:00:53]}  g6 {[%clk 0:00:24]} 29. Ne2 {[%clk 0:00:46]}  Rd8 {[%clk 0:00:21]} 30. Nf7 {[%clk 0:00:41]}  Rd2 {[%clk 0:00:12]} 31. Ng5 {[%clk 0:00:40]}  Kg7 {[%clk 0:00:11]} 32. h4 {[%clk 0:00:38]}  Kf6 {[%clk 0:00:11]} 33. Re3 {[%clk 0:00:37]}  Rxc2 {[%clk 0:00:09]} 34. b3 {[%clk 0:00:36]}  b5 {[%clk 0:00:08]} 35. Nd4 {[%clk 0:00:33]}  Rd2 {[%clk 0:00:08]} 36. Nxc6 {[%clk 0:00:31]}  Re8 {[%clk 0:00:08]} 37. axb5 {[%clk 0:00:28]}  axb5 {[%clk 0:00:09]} 38. b4 {[%clk 0:00:28]}  f4 {[%clk 0:00:08]} 39. Re4 {[%clk 0:00:27]}  Rd1+ {[%clk 0:00:09]} 40. Kf2 {[%clk 0:00:25]}  Rd2+ {[%clk 0:00:07]} 41. Kf3 {[%clk 0:00:25]}  Rd6 {[%clk 0:00:07]} 42. Nd4 {[%clk 0:00:23]}  Rc8 {[%clk 0:00:03]} 43. Kxf4 {[%clk 0:00:22]}  Ke7 {[%clk 0:00:02]} 44. Ndf3 {[%clk 0:00:20]}  Rc4 {[%clk 0:00:00]} 45. Ne5 {[%clk 0:00:19]} 1-0


[Site "https://www.chess.com"]

[Event "Titled Tuesday Blitz June 13 Late 2023"]
[White "Almedina Ortiz, Edgardo J."]
[Black "KorolDimitriy75"]
[WhiteFideId "3100197"]
[WhiteElo "2217"]
[BlackElo "2411"]
[Result "1-0"]
[Round "8"]
[TimeControl "180+2"]
[Date "2023.06.13"]
[WhiteClock "0:00:26"]
[BlackClock "0:00:00"]
[Board "119"]

1. d4 {[%clk 0:03:00]}  Nf6 {[%clk 0:02:59]} 2. c4 {[%clk 0:02:59]}  c5 {[%clk 0:02:59]} 3. d5 {[%clk 0:02:59]}  b5 {[%clk 0:02:59]} 4. cxb5 {[%clk 0:03:00]}  a6 {[%clk 0:02:59]} 5. bxa6 {[%clk 0:03:00]}  g6 {[%clk 0:02:59]} 6. Nc3 {[%clk 0:03:01]}  Bxa6 {[%clk 0:03:00]} 7. e4 {[%clk 0:03:01]}  Bxf1 {[%clk 0:03:01]} 8. Kxf1 {[%clk 0:03:02]}  d6 {[%clk 0:03:01]} 9. g3 {[%clk 0:03:02]}  Bg7 {[%clk 0:03:02]} 10. Kg2 {[%clk 0:03:03]}  O-O {[%clk 0:03:03]} 11. Nf3 {[%clk 0:03:03]}  Nbd7 {[%clk 0:03:03]} 12. a4 {[%clk 0:03:04]}  Qb8 {[%clk 0:03:03]} 13. Qe2 {[%clk 0:03:02]}  Qb4 {[%clk 0:03:03]} 14. Bd2 {[%clk 0:02:57]}  Nb6 {[%clk 0:03:01]} 15. b3 {[%clk 0:02:40]}  Rfb8 {[%clk 0:01:35]} 16. Rab1 {[%clk 0:02:36]}  Qa5 {[%clk 0:01:04]} 17. Nb5 {[%clk 0:02:21]}  Qa6 {[%clk 0:01:03]} 18. Rhe1 {[%clk 0:02:20]}  Ne8 {[%clk 0:01:00]} 19. a5 {[%clk 0:01:25]}  Nxd5 {[%clk 0:00:34]} 20. exd5 {[%clk 0:01:26]}  Qxb5 {[%clk 0:00:22]} 21. Qxb5 {[%clk 0:01:26]}  Rxb5 {[%clk 0:00:23]} 22. Rxe7 {[%clk 0:01:25]}  Nf6 {[%clk 0:00:22]} 23. Ng5 {[%clk 0:00:56]}  Nxd5 {[%clk 0:00:22]} 24. Rd7 {[%clk 0:00:52]}  Nc3 {[%clk 0:00:09]} 25. Bxc3 {[%clk 0:00:47]}  Bxc3 {[%clk 0:00:10]} 26. Nxf7 {[%clk 0:00:47]}  Rbxa5 {[%clk 0:00:05]} 27. Nxd6 {[%clk 0:00:39]}  Bd4 {[%clk 0:00:04]} 28. Re1 {[%clk 0:00:32]}  Ra2 {[%clk 0:00:00]} 29. Ree7 {[%clk 0:00:26]} 1-0


[Site "https://www.chess.com"]